bitfinex-derivatives/quotes_ETHF0:USTF0_20240920
["timestamp","ask_amount","ask_price","bid_price","bid_amount"]
[1726798864650,0.40772,2452.0,2451.9,0.4182]
[1726798864846,0.83412,2452.0,2451.9,0.4182]
[1726798865046,0.40774,2451.9,2451.7,0.4065]
[1726798865348,3.99106,2451.8,2451.6,0.4182]
[1726798865646,3.5833,2451.8,2451.6,0.82599]
[1726798866247,3.99106,2451.8,2451.6,0.4182]
[1726798866950,3.5833,2451.8,2451.6,0.4182]
[1726798867452,0.4033,2451.8,2451.7,0.40777]
[1726798867652,6.718,2452.0,2451.8,0.40776]
[1726798867846,6.718,2452.0,2451.7,0.40776]
[1726798868150,6.718,2452.0,2451.8,0.40775]
[1726798868452,6.718,2452.0,2451.7,0.40776]
[1726798868754,6.718,2452.0,2451.8,0.40776]
[1726798869161,0.3894,2452.1,2451.9,0.40773]
[1726798869448,3.9384,2452.3,2452.0,0.4229]
[1726798869752,3.5935,2452.2,2452.0,0.4229]
[1726798870456,3.2078,2452.1,2452.0,0.4229]
[1726798870841,3.2078,2452.1,2451.8,0.4101]
[1726798870842,3.61552,2452.1,2451.8,0.4101]
[1726798871146,3.18,2452.0,2451.8,0.4229]
[1726798871652,0.4006,2451.9,2451.8,0.4229]
[1726798872349,0.40777,2451.8,2451.5,0.3851]
[1726798872547,3.18,2451.7,2451.5,0.7756]
[1726798872851,3.18,2451.7,2451.5,1.1834]
[1726798874160,3.18,2451.7,2451.5,0.7756]
[1726798874339,3.18,2451.7,2451.5,0.3905]
[1726798874741,0.40779,2451.6,2451.5,0.3905]
[1726798874947,3.58779,2451.6,2451.5,0.3905]
[1726798875153,3.18,2451.6,2451.4,3.2078]
[1726798875353,3.58779,2451.6,2451.4,3.2078]
[1726798875553,3.18,2451.6,2451.0,3.2078]
[1726798875746,6.7458,2451.7,2451.0,3.61568]
[1726798875747,3.58783,2451.4,2451.0,3.61568]
[1726798876053,3.18,2451.1,2451.0,3.61568]
[1726798876251,3.18,2451.1,2451.0,3.2078]
[1726798876454,3.18,2451.1,2451.0,3.61569]
[1726798877047,3.18,2451.1,2451.0,3.2078]
[1726798877255,3.18,2451.1,2451.0,3.61569]
[1726798877858,3.18,2451.1,2451.0,3.2078]
[1726798879743,3.18,2451.1,2451.0,3.61569]
[1726798879949,3.18,2451.1,2451.0,3.2078]
[1726798881361,3.58787,2451.1,2451.0,3.2078]
[1726798881665,3.18,2451.1,2451.0,3.2078]
[1726798883363,3.18,2451.1,2451.0,3.6033]
[1726798883364,3.58787,2451.1,2451.0,3.6033]
[1726798883656,3.18,2451.1,2451.0,3.6033]
[1726798883856,4.0266,2451.3,2451.0,3.6033]
[1726798884172,3.18,2451.5,2451.3,0.40783]
[1726798884456,0.4011,2451.7,2451.6,0.40779]
[1726798884664,3.18,2451.9,2451.4,0.4113]
[1726798884858,7.12674,2451.9,2451.6,0.40778]
[1726798885063,7.12674,2451.9,2451.4,0.4113]
[1726798885064,0.40776,2451.8,2451.7,0.3857]
[1726798885266,3.58776,2451.8,2451.7,0.3857]
[1726798885564,13.2584,2451.8,2450.9,3.2078]
[1726798885865,0.40781,2451.5,2451.2,0.81915]
[1726798886163,0.8118,2451.4,2451.2,0.81915]
[1726798887657,3.18,2451.3,2451.2,0.4113]
[1726798887857,3.58784,2451.3,2451.2,0.4113]
[1726798888455,3.18,2451.3,2451.2,0.4113]
[1726798888853,0.8118,2451.4,2451.2,0.4113]
[1726798889153,3.536,2451.4,2451.3,0.40784]
[1726798889764,3.536,2451.4,2451.2,0.81915]
[1726798890264,3.536,2451.4,2450.9,3.2078]
[1726798890265,3.18,2451.3,2450.9,3.2078]
[1726798890565,3.58788,2451.1,2450.9,0.4087]
[1726798891167,0.40789,2451.0,2450.9,0.4087]
[1726798891366,3.58788,2451.1,2450.9,0.4087]
[1726798891567,0.40789,2451.0,2450.9,0.4087]
[1726798892166,3.61569,2451.0,2450.9,0.4087]
[1726798892371,3.58788,2451.1,2450.9,0.4087]
[1726798892862,3.18,2451.1,2450.9,0.4087]
[1726798893065,3.58788,2451.1,2450.9,0.4087]
[1726798893256,3.536,2451.0,2450.9,0.4087]
[1726798894768,3.9535,2451.0,2450.9,0.4087]
[1726798895171,7.56919,2451.0,2450.9,0.4087]
[1726798896063,4.36139,2451.0,2450.9,0.4087]
[1726798897371,7.56919,2451.0,2450.6,0.80405]
[1726798897564,3.18,2450.9,2450.7,0.3984]
[1726798897861,3.18,2450.9,2450.7,0.80634]
[1726798898458,0.808,2450.8,2450.6,0.3961]
[1726798898666,3.18,2450.7,2450.5,0.3984]
[1726798898867,3.5683,2450.7,2450.5,0.80637]
[1726798900560,3.5683,2450.7,2450.1,3.2078]
[1726798900764,0.408,2450.4,2450.2,0.4044]
[1726798900968,4.3451,2450.3,2450.2,0.4044]
[1726798901167,4.75311,2450.3,2450.2,0.4044]
[1726798901471,0.40804,2450.2,2450.0,0.3931]
[1726798901767,0.40806,2450.0,2449.9,0.4044]
[1726798901961,3.58806,2450.0,2449.9,0.4044]
[1726798902161,7.2616,2450.0,2449.6,0.4257]
[1726798902359,3.18,2449.7,2449.6,0.4257]
[1726798902564,6.716,2449.7,2449.6,0.4257]
[1726798902766,6.716,2449.7,2449.3,0.81696]
[1726798902967,3.18,2449.5,2449.3,0.81696]
[1726798903370,3.18,2449.5,2449.3,4.89936]
[1726798903561,3.18,2449.5,2449.3,0.81696]
[1726798903763,7.1488,2449.7,2449.3,0.81696]
[1726798903764,3.537,2449.4,2449.3,4.89937]
[1726798903967,3.537,2449.4,2449.3,0.81697]
[1726798904169,3.537,2449.4,2449.3,4.89937]
[1726798905580,3.537,2449.4,2449.3,4.49057]
[1726798908067,3.585,2449.7,2449.4,0.40815]
[1726798908269,3.537,2449.6,2449.4,0.40815]
[1726798908871,3.537,2449.6,2449.5,0.4232]
[1726798912280,3.537,2449.6,2449.4,0.4208]
[1726798912583,3.537,2449.6,2449.4,0.82895]
[1726798913470,3.537,2449.6,2449.4,1.25065]
[1726798914875,3.537,2449.6,2449.4,0.8425]
[1726798915075,3.537,2449.6,2449.4,1.25065]
[1726798915273,3.18,2449.5,2449.4,0.8425]
[1726798915479,3.18,2449.5,2449.4,1.25066]
[1726798916474,3.18,2449.5,2448.7,3.2078]
[1726798916676,3.18,2449.1,2449.0,0.4075]
[1726798916978,6.714,2449.1,2448.9,0.4169]
[1726798917280,3.6163,2449.0,2448.6,0.3888]
[1726798917483,3.18,2448.8,2448.6,0.3888]
[1726798917682,3.18,2448.8,2448.6,0.79709]
[1726798917983,3.18,2448.8,2448.6,0.3888]
[1726798918198,3.18,2448.8,2448.2,0.3937]
[1726798918199,3.2078,2448.7,2448.2,0.3937]
[1726798918484,3.18,2448.3,2448.2,0.80206]
[1726798918781,3.18,2448.5,2448.2,0.3937]
[1726798918980,6.3878,2448.7,2448.2,0.3937]
[1726798919191,3.534,2448.6,2448.2,0.3937]
[1726798919483,3.534,2448.6,2448.5,0.40831]
[1726798919684,3.534,2448.6,2448.2,0.3937]
[1726798919982,3.534,2448.6,2448.5,0.4083]
[1726798921384,3.534,2448.6,2448.2,0.3937]
[1726798921385,3.534,2448.6,2448.4,0.40831]
[1726798921579,6.714,2448.6,2448.3,0.40833]
[1726798921882,3.18,2448.4,2448.2,0.80205]
[1726798922275,3.58832,2448.4,2448.2,0.3937]
[1726798922476,6.3878,2448.4,2447.9,0.4084]
[1726798922684,3.18,2448.0,2447.7,4.0209]
[1726798922878,6.715,2448.0,2447.9,0.40841]
[1726798923292,3.18,2448.0,2447.8,0.40841]
[1726798923588,3.18,2448.0,2447.9,0.40841]
[1726798923589,6.715,2448.0,2447.9,0.40841]
[1726798924186,6.715,2448.0,2447.8,0.40841]
[1726798924392,6.715,2448.0,2447.9,0.40841]
[1726798924779,3.535,2448.0,2447.9,0.40841]
[1726798924974,4.5324,2448.5,2447.9,10.0848]
[1726798925197,3.535,2448.4,2448.3,0.40834]
[1726798926081,3.535,2448.4,2448.2,1.25395]
[1726798926787,6.715,2448.4,2448.2,1.25395]
[1726798928185,6.715,2448.4,2448.3,0.40834]
[1726798928585,6.715,2448.4,2448.2,1.25395]
[1726798929198,6.715,2448.4,2448.3,0.40834]
[1726798929377,3.18,2448.4,2448.3,0.40834]
[1726798929584,6.7428,2448.7,2448.6,0.40829]
[1726798929885,3.535,2448.7,2448.6,0.40829]
[1726798930179,3.535,2448.7,2448.2,0.8456]
[1726798930384,3.535,2448.7,2448.6,0.40829]
[1726798930893,3.18,2448.8,2448.7,0.40827]
[1726798931196,6.715,2448.8,2448.7,0.40827]
[1726798932387,3.18,2448.8,2448.7,0.40827]
[1726798932594,3.535,2448.9,2448.8,0.40826]
[1726798932793,3.18,2449.0,2448.8,0.40826]
[1726798933091,6.715,2449.0,2448.8,0.40825]
[1726798933283,3.18,2449.0,2448.7,0.40826]
[1726798933484,6.715,2449.0,2448.8,0.40825]
[1726798935392,6.715,2449.0,2448.8,0.40826]
[1726798935794,7.12322,2449.0,2448.7,0.40826]
[1726798936094,6.715,2449.0,2448.7,0.40826]
[1726798936292,6.715,2449.0,2448.8,0.40825]
[1726798937198,3.6212,2449.1,2448.5,3.2078]
[1726798937387,3.535,2449.0,2448.9,0.40824]
[1726798937591,7.1562,2449.1,2449.0,0.80612]
[1726798937895,7.56441,2449.1,2449.0,0.3979]
[1726798938195,10.3362,2449.1,2449.0,0.3979]
[1726798938795,10.74441,2449.1,2449.0,0.3979]
[1726798938996,10.3362,2449.1,2449.0,0.3979]
[1726798942094,20.82761,2449.1,2449.0,0.3979]
[1726798942288,20.8368,2449.1,2448.4,0.8302]
[1726798942491,3.18,2448.8,2448.4,0.8302]
[1726798942692,3.18,2448.8,2448.7,0.40827]
[1726798944092,0.40823,2449.0,2448.8,0.40826]
[1726798944093,7.12323,2449.0,2448.8,0.40826]
[1726798944297,7.12323,2449.0,2448.8,0.40825]
[1726798944704,7.12323,2449.0,2448.7,0.40826]
[1726798944901,3.18,2448.8,2448.7,0.40826]
[1726798945793,3.18,2448.8,2448.2,3.2078]
[1726798945997,3.18,2448.3,2447.8,3.2078]
[1726798946302,1.25626,2448.2,2447.9,0.4217]
[1726798946507,1.25626,2448.2,2447.9,0.83009]
[1726798946799,3.5884,2448.0,2447.7,0.81914]
[1726798947003,3.18,2447.8,2447.7,0.81914]
[1726798947301,3.18,2448.0,2447.8,0.40842]
[1726798947496,3.5884,2448.0,2447.7,0.81913]
[1726798948195,3.18,2448.0,2447.8,0.40842]
[1726798948398,0.40841,2447.9,2447.6,0.40845]
[1726798948597,0.40841,2447.9,2447.7,0.40844]
[1726798948802,6.711,2448.0,2447.5,3.2078]
[1726798948999,6.711,2448.0,2447.8,0.40841]
[1726798949402,7.11939,2448.0,2447.7,0.40843]
[1726798949901,4.0279,2448.2,2447.5,3.2078]
[1726798950103,4.0279,2448.2,2447.9,0.4084]
[1726798950104,3.531,2448.1,2447.9,0.4084]
[1726798950496,7.5589,2448.2,2447.6,0.4063]
[1726798950802,7.5589,2448.2,2448.0,0.40839]
[1726798951098,7.1343,2448.2,2448.0,0.40838]
[1726798951494,3.6033,2448.2,2448.0,0.40838]
[1726798952904,4.01166,2448.2,2447.9,0.4084]
[1726798953094,3.6033,2448.2,2448.0,0.40839]
[1726798953902,4.01166,2448.2,2448.0,0.40839]
[1726798954101,4.01166,2448.2,2447.9,0.4084]
[1726798954402,3.6033,2448.2,2448.0,0.40839]
[1726798955100,4.01166,2448.2,2447.9,0.4084]
[1726798955306,0.4135,2448.1,2447.9,0.4084]
[1726798956705,0.82187,2448.1,2447.9,0.4084]
[1726798956901,3.18,2448.0,2447.8,0.4121]
[1726798957107,3.18,2448.0,2447.7,0.79503]
[1726798957294,3.18,2448.0,2447.7,0.3866]
[1726798957498,0.40841,2447.9,2447.7,0.3866]
[1726798957707,3.18,2448.0,2447.6,0.40845]
[1726798958606,0.40841,2447.9,2447.6,0.40845]
[1726798960303,0.40841,2447.9,2447.4,0.411]
[1726798960510,3.5884,2448.0,2447.4,0.411]
[1726798960809,3.5884,2448.0,2447.8,0.40842]
[1726798961010,3.18,2448.0,2447.5,3.2078]
[1726798961308,6.712,2448.0,2447.8,0.40841]
[1726798961611,0.82189,2448.1,2447.5,3.2078]
[1726798961798,3.532,2448.0,2447.9,0.4084]
[1726798962103,3.532,2448.1,2448.0,0.40839]
[1726798962306,3.2078,2448.3,2448.1,0.40837]
[1726798962503,3.532,2448.3,2448.1,0.40836]
[1726798963095,3.532,2448.3,2447.9,0.8249]
[1726798963303,3.532,2448.3,2448.2,0.40836]
[1726798964702,3.9935,2448.4,2448.2,0.40836]
[1726798964904,7.5255,2448.4,2448.2,0.40836]
[1726798965514,7.93382,2448.4,2448.2,0.40836]
[1726798965714,7.93382,2448.4,2448.1,0.40836]
[1726798967117,7.5255,2448.4,2448.2,0.40835]
[1726798967712,7.5255,2448.4,2448.3,0.40834]
[1726798967713,3.532,2448.4,2448.3,0.40834]
[1726798968218,3.94031,2448.5,2448.3,0.40833]
[1726798968419,3.94031,2448.5,2448.2,0.40834]
[1726798968817,3.532,2448.5,2448.3,0.40833]
[1726798969114,3.94031,2448.5,2448.2,0.40835]
[1726798969525,3.18,2448.4,2448.2,0.40835]
[1726798969727,3.18,2448.4,2448.3,0.40834]
[1726798969919,3.18,2448.4,2448.2,0.40835]
[1726798970221,6.3878,2448.4,2448.2,0.40835]
[1726798970522,3.18,2448.4,2448.2,0.40835]
[1726798971723,3.58833,2448.4,2448.1,0.40836]
[1726798971929,3.58833,2448.4,2447.9,0.8249]
[1726798971930,6.3878,2448.4,2447.9,0.8249]
[1726798972115,6.3878,2448.4,2448.2,0.40836]
[1726798972815,6.79612,2448.4,2448.1,0.40836]
[1726798973616,6.79612,2448.4,2448.2,0.40835]
[1726798977732,6.79613,2448.4,2448.1,0.40836]
[1726798979327,10.32313,2448.4,2447.9,0.8249]
[1726798979625,10.32313,2448.4,2448.1,0.40836]
[1726798980837,9.9148,2448.4,2448.3,0.40834]
[1726798981132,9.9148,2448.4,2448.2,0.40835]
[1726798981333,10.32313,2448.4,2448.1,0.40836]
[1726798981534,10.32313,2448.4,2448.2,0.40835]
[1726798981831,6.79613,2448.4,2448.2,0.40835]
[1726798982830,6.3878,2448.4,2448.2,0.40835]
[1726798983032,6.3878,2448.4,2447.9,1.8897314]
[1726798983336,6.3878,2448.4,2448.3,0.40834]
[1726798983524,6.3878,2448.4,2447.8,4.2726314]
[1726798983525,0.40836,2448.2,2447.8,4.2726314]
[1726798983838,0.3986,2448.1,2448.0,0.40838]
[1726798985129,3.527,2448.4,2448.0,5.1496314]
[1726798985331,3.93532,2448.4,2448.0,1.0648314]
[1726798985641,3.527,2448.4,2448.2,0.40835]
[1726798986435,3.527,2448.4,2448.3,0.40834]
[1726798986836,3.93532,2448.4,2448.2,0.40835]
[1726798987141,3.527,2448.4,2448.2,0.40835]
[1726798987335,0.40835,2448.3,2448.0,1.4732114]
[1726798987640,0.4037,2448.2,2448.1,0.40837]
[1726798990040,0.8223,2448.2,2448.0,0.40838]
[1726798990339,1.23066,2448.2,2448.0,0.40838]
[1726798990539,0.40838,2448.1,2447.9,1.0648314]
[1726798990731,3.58839,2448.0,2447.8,4.2726314]
[1726798990933,0.40841,2447.9,2447.8,4.2726314]
[1726798991129,0.40841,2447.9,2447.8,3.2078]
[1726798991330,3.93541,2447.9,2447.5,1.4679314]
[1726798991529,0.8381,2447.8,2447.6,0.40844]
[1726798991939,0.8381,2447.8,2447.7,0.40844]
[1726798995541,3.527,2448.0,2447.6,4.2726314]
[1726798995743,3.527,2448.0,2447.9,0.40841]
[1726798995936,3.527,2448.0,2447.8,0.40841]
[1726798996144,3.9354,2448.0,2447.8,0.40841]
[1726798997136,3.9354,2448.0,2447.6,3.61625]
[1726798997137,0.40842,2447.9,2447.6,3.61625]
[1726798997340,0.4217,2447.8,2447.6,0.40845]
[1726798998235,0.4217,2447.8,2447.6,1.4732814]
[1726798998749,3.6015,2448.1,2447.6,1.0648314]
[1726798999048,3.9544,2448.0,2447.8,0.40841]
[1726798999546,4.3628,2448.0,2447.7,1.4732614]
[1726798999842,3.9544,2448.0,2447.7,1.0648314]
[1726799000247,4.3628,2448.0,2447.7,1.4732514]
[1726799000443,3.9544,2448.0,2447.8,0.40842]
[1726799000942,0.40841,2447.9,2447.6,1.4732714]
[1726799001241,0.40843,2447.8,2447.6,1.4732714]
[1726799001444,0.3925,2447.7,2447.6,1.4732714]
[1726799002650,0.3925,2447.7,2447.6,1.0648314]
[1726799002844,0.3925,2447.7,2447.5,1.4732914]
[1726799003147,0.80094,2447.7,2447.5,1.4732914]
[1726799003344,0.80094,2447.7,2447.5,0.40846]
[1726799004148,0.80094,2447.7,2447.5,1.4732914]
[1726799004346,0.80094,2447.7,2447.5,0.40846]
[1726799004550,0.80094,2447.7,2447.5,1.4732914]
[1726799004850,0.40847,2447.5,2447.4,1.0648314]
[1726799005142,3.18,2447.5,2447.1,1.4733714]
[1726799005346,4.32299,2447.4,2447.2,0.40852]
[1726799005540,0.3894,2447.3,2447.2,0.40852]
[1726799005942,0.3894,2447.3,2447.2,0.80222]
[1726799005943,1.8594,2447.3,2447.2,0.80222]
[1726799007455,5.3804,2447.3,2447.2,0.80222]
[1726799008037,3.9104,2447.3,2447.2,0.80222]
[1726799008751,3.9104,2447.3,2447.2,0.3937]
[1726799008950,3.9104,2447.3,2447.2,0.80222]
[1726799009355,3.9104,2447.3,2447.2,0.3937]
[1726799009854,3.9104,2447.3,2447.2,0.80222]
[1726799010346,3.5854,2447.6,2447.2,0.3937]
[1726799010543,3.522,2447.5,2447.3,0.427]
[1726799010739,3.522,2447.5,2447.3,0.8355]
[1726799010953,3.93047,2447.5,2447.3,0.8355]
[1726799011646,3.93047,2447.5,2447.3,0.427]
[1726799011845,3.522,2447.5,2447.3,0.8355]
[1726799012453,3.522,2447.5,2447.4,0.40849]
[1726799012653,3.522,2447.5,2447.3,0.8355]
[1726799013948,3.522,2447.5,2447.3,0.427]
[1726799014344,4.32929,2447.5,2447.2,0.3937]
[1726799014548,3.522,2447.4,2447.2,0.80221]
[1726799016155,3.522,2447.4,2447.3,0.40851]
[1726799016555,6.7932,2447.6,2447.2,0.3937]
[1726799016756,3.522,2447.5,2447.4,0.40848]
[1726799016951,3.2078,2447.6,2447.5,0.40847]
[1726799017149,3.11354,2447.6,2447.2,0.8184]
[1726799017346,10.5188,2448.0,2447.3,4.22907]
[1726799017551,3.522,2447.9,2447.8,0.40842]
[1726799019863,4.0441,2448.0,2447.8,0.40842]
[1726799020158,3.522,2447.9,2447.8,0.40842]
[1726799020359,3.522,2447.9,2447.7,0.40843]
[1726799023160,3.93041,2447.9,2447.6,0.40845]
[1726799023352,3.19,2447.8,2447.7,0.40844]
[1726799023553,3.19,2447.8,2447.6,0.40845]
[1726799023955,3.522,2447.9,2447.8,0.40842]
[1726799024152,6.7298,2447.9,2447.7,0.40843]
[1726799024352,3.522,2447.9,2447.8,0.40842]
[1726799024547,3.522,2447.9,2447.7,0.40843]
[1726799025551,6.7298,2447.9,2447.7,0.40843]
[1726799025753,3.522,2447.9,2447.7,0.40843]
[1726799026860,3.522,2447.9,2447.8,0.40842]
[1726799027060,3.522,2447.9,2447.7,0.40843]
[1726799027966,1.47,2447.8,2447.7,0.40843]
[1726799034559,1.2447,2448.0,2447.4,0.3932]
[1726799034560,2.3063,2448.0,2447.8,0.40841]
[1726799034756,3.521,2447.9,2447.8,0.40841]
[1726799036064,4.121,2448.3,2447.8,11.5556]
[1726799036265,4.121,2448.3,2448.2,0.40836]
[1726799036769,5.591,2448.3,2448.1,0.40837]
[1726799037064,5.591,2448.3,2447.9,1.2272]
[1726799037269,5.591,2448.3,2448.1,0.40836]
[1726799037471,0.397,2448.2,2448.1,0.40836]
[1726799037671,1.867,2448.2,2448.0,0.40838]
[1726799038165,5.48316,2448.2,2447.9,0.8019]
[1726799038371,5.0748,2448.2,2447.9,0.8019]
[1726799038564,5.0748,2448.2,2448.0,0.40839]
[1726799040669,5.48316,2448.2,2447.9,1.2103]
[1726799040877,1.47,2448.0,2447.8,0.40842]
[1726799041065,1.47,2448.0,2447.7,0.40843]
[1726799041066,1.8824,2447.9,2447.7,0.40843]
[1726799041264,0.3958,2447.8,2447.6,0.80335]
[1726799041574,1.47,2447.7,2447.6,0.80335]
[1726799041876,0.3958,2447.8,2447.7,0.40844]
[1726799042668,1.47,2448.2,2447.6,1.8649]
[1726799042966,1.47,2448.2,2447.7,5.479]
[1726799043168,4.7916,2448.3,2448.0,0.40838]
[1726799043465,1.2776,2448.3,2448.1,0.81867]
[1726799044472,1.2776,2448.3,2448.1,0.81866]
[1726799044672,1.2776,2448.3,2448.2,0.40836]
[1726799045171,1.2776,2448.3,2448.1,0.81866]
[1726799045875,8.97137859,2448.2,2447.0,4.27720119]
[1726799046073,8.97137859,2448.2,2446.9,1.60410179]
[1726799046074,1.47,2447.5,2447.2,0.4006]
[1726799046264,3.2078,2447.6,2447.2,0.4006]
[1726799046467,3.2078,2447.6,2447.5,0.40847]
[1726799047372,6.197,2447.9,2447.5,0.79857]
[1726799047570,0.807,2447.9,2447.6,0.80905]
[1726799047772,3.2078,2448.0,2447.6,1.8706]
[1726799048084,3.2078,2448.0,2447.8,0.40841]
[1726799050577,3.2078,2448.0,2447.6,0.40845]
[1726799050771,3.59841,2447.9,2447.7,0.4176]
[1726799051083,0.8426,2447.8,2447.7,0.4176]
[1726799051373,1.2627,2447.8,2447.7,0.4176]
[1726799053179,1.67112,2447.8,2447.7,0.4176]
[1726799053376,1.67112,2447.8,2447.4,4.02339]
[1726799053681,1.2627,2447.8,2447.4,4.44099]
[1726799054373,3.2078,2447.7,2447.4,1.23319]
[1726799055578,1.2627,2447.8,2447.4,1.23319]
[1726799055579,1.67113,2447.8,2447.4,1.23319]
[1726799055983,1.67113,2447.8,2447.4,0.8247]
[1726799056179,1.67113,2447.8,2447.4,1.23318]
[1726799057580,6.3978,2447.7,2447.4,1.23319]
[1726799058189,6.3978,2447.7,2447.1,1.06940119]
[1726799058486,3.61629,2447.4,2447.1,0.7995]
[1726799058685,0.7791,2447.3,2447.1,0.7995]
[1726799058889,0.7791,2447.3,2447.1,1.20804]
[1726799059383,0.7791,2447.3,2447.1,0.7995]
[1726799059582,0.7791,2447.3,2447.1,1.20804]
[1726799059779,0.7791,2447.3,2447.1,0.7995]
[1726799060487,3.2078,2447.4,2447.2,0.40852]
[1726799060884,3.59847,2447.5,2447.1,2.27743119]
[1726799061080,3.59847,2447.5,2447.1,1.20803]
[1726799061383,0.4064,2447.4,2447.1,1.20803]
[1726799061585,0.7968,2447.4,2447.1,1.20803]
[1726799061976,1.2217,2447.4,2447.1,1.20803]
[1726799063779,0.40845,2447.7,2447.1,0.7995]
[1726799063979,0.40845,2447.7,2447.4,0.40848]
[1726799064183,6.7228,2447.8,2447.4,0.40848]
[1726799064184,7.13124,2447.8,2447.5,0.4271]
[1726799064493,7.13123,2447.8,2447.5,0.4271]
[1726799065775,3.2078,2447.8,2447.5,0.4271]
[1726799066087,3.2078,2447.8,2447.6,0.4199]
[1726799066482,3.61622,2447.8,2447.6,0.4199]
[1726799069081,3.61622,2447.8,2447.5,0.83557]
[1726799069290,3.19,2447.7,2447.5,0.83557]
[1726799070885,3.19,2447.7,2447.6,0.40846]
[1726799071087,3.19,2447.7,2447.5,0.83556]
[1726799071290,3.2078,2447.8,2447.6,0.40845]
[1726799071591,3.2078,2447.8,2447.5,0.83556]
[1726799071783,3.2078,2447.8,2447.5,0.4271]
[1726799071992,3.2078,2447.8,2447.7,0.40844]
[1726799072891,3.2078,2447.8,2447.6,0.40845]
[1726799073796,3.2078,2447.8,2447.5,0.4271]
[1726799073797,3.2078,2447.8,2447.7,0.40844]
[1726799076090,3.2078,2447.8,2447.6,0.40844]
[1726799079189,3.2078,2447.8,2447.7,0.40844]
[1726799081390,0.8041,2448.0,2447.7,0.40844]
[1726799081696,3.8939,2448.2,2448.0,0.40839]
[1726799081893,4.30226,2448.2,2448.1,0.4191]
[1726799082296,3.8939,2448.2,2448.1,0.4191]
[1726799082493,7.12515,2448.3,2448.1,0.4191]
[1726799082791,3.61615,2448.3,2448.1,0.4191]
[1726799084596,0.40838,2448.1,2447.9,0.40841]
[1726799084899,0.7834,2448.0,2447.9,0.4195]
[1726799085190,0.7834,2448.0,2447.9,0.82791]
[1726799089895,2.2534,2448.0,2447.9,0.82791]
[1726799090289,2.2534,2448.0,2447.9,0.4195]
[1726799090488,2.2534,2448.0,2447.9,0.82791]
[1726799093799,2.66179,2448.0,2447.9,0.4195]
[1726799093997,2.2534,2448.0,2447.9,0.4195]
[1726799094299,2.2534,2448.0,2447.9,0.82791]
[1726799097589,2.2534,2448.0,2447.9,0.4195]
[1726799098391,2.2534,2448.0,2447.9,0.82791]
[1726799099398,2.2534,2448.0,2447.9,0.4195]
[1726799099796,2.2534,2448.0,2447.9,0.82791]
[1726799100299,5.86959,2448.0,2447.9,0.4195]
[1726799100502,0.40841,2447.9,2447.7,0.40843]
[1726799100890,0.40843,2447.8,2447.6,0.80315]
[1726799101095,1.87843,2447.8,2447.6,0.80315]
[1726799101303,0.40846,2447.6,2447.4,0.40848]
[1726799101497,4.6778,2447.7,2447.4,0.3947]
[1726799101498,1.47,2447.5,2447.4,0.3947]
[1726799101705,1.8695,2447.5,2447.4,0.3947]
[1726799102203,1.8695,2447.5,2447.4,0.80319]
[1726799103601,2.27797,2447.5,2447.4,0.3947]
[1726799104798,1.8695,2447.5,2447.4,0.80319]
[1726799105908,0.4085,2447.4,2447.2,0.40852]
[1726799106308,2.27798,2447.5,2447.2,0.40852]
[1726799106511,0.40849,2447.4,2447.2,0.40851]
[1726799106708,2.27799,2447.5,2447.2,0.40851]
[1726799106908,2.27799,2447.5,2447.3,0.4085]
[1726799108105,1.8695,2447.5,2447.3,0.4085]
[1726799108307,2.27797,2447.5,2447.3,0.4085]
[1726799109202,1.8695,2447.5,2447.3,0.4085]
[1726799109402,1.8695,2447.5,2447.1,3.6037]
[1726799109403,3.90944,2447.8,2447.5,0.40847]
[1726799109611,3.90944,2447.8,2447.6,0.4238]
[1726799109612,4.30224,2447.8,2447.6,0.4238]
[1726799109802,4.30224,2447.8,2447.6,0.83225]
[1726799110403,4.30224,2447.8,2447.6,0.4238]
[1726799110804,1.87844,2447.7,2447.6,0.4238]
[1726799111111,0.40846,2447.6,2447.4,0.40848]
[1726799111313,2.66226,2447.6,2447.4,0.40848]
[1726799112104,2.2538,2447.6,2447.4,0.40848]
[1726799112304,2.2538,2447.6,2447.5,0.40847]
[1726799113203,1.8559,2447.6,2447.5,0.40847]
[1726799115513,2.26436,2447.6,2447.4,0.40848]
[1726799116000,1.8559,2447.6,2447.4,0.40848]
[1726799116200,1.8559,2447.6,2447.5,0.40847]
[1726799116610,2.26436,2447.6,2447.4,0.40848]
[1726799116815,0.4225,2447.5,2447.4,0.40848]
[1726799117212,0.4225,2447.5,2447.2,1.49320119]
[1726799117514,2.26436,2447.6,2447.4,0.40849]
[1726799121216,1.8559,2447.6,2447.5,0.40847]
[1726799121415,2.26436,2447.6,2447.4,0.40848]
[1726799122122,6.34997,2447.6,2447.3,0.4085]
[1726799122326,0.40847,2447.5,2447.3,0.4085]
[1726799122622,0.4054,2447.4,2447.3,0.4085]
[1726799125930,0.3859,2447.6,2447.2,1.49320119]
[1726799126628,0.3859,2447.6,2447.4,0.40848]
[1726799127424,0.3859,2447.6,2447.5,0.40847]
[1726799128428,0.40848,2447.5,2447.3,0.4085]